Cogmind - Beta 12 X4 @@@ ROGUE MODE // 2022.12.15 @ 14:58:00 // Halloween2019/Abominations Player: Terminus Result: Self-destructed Performance ------------- Evolutions (1) 500 Regions Visited (2) 400 Robots Destroyed (11) 55 Value Destroyed (456) 456 Prototype IDs (0) 0 Alien Tech Used (0) 0 Bonus (0) 0 TOTAL SCORE: 1411 Bonus ------- None Cogmind --------- Core Integrity 300/400 Matter 270/300 Energy 250/250 System Corruption 0% Temperature Cool (0) Movement Walking (120) Location -9/Materials Parts ------- > --- POWER (1) -------- Ion Engine > --- PROPULSION (2) --- Aluminum Leg Aluminum Leg > --- UTILITY (3) ------ Heat Sink Heat Sink Small Storage Unit > --- WEAPON (3) ------- Small Laser Assault Rifle > --- INVENTORY (8) ---- Light Ion Engine Light Ion Engine Aluminum Leg Aluminum Leg Aluminum Leg Hacking Suite Peak State ------------ > --- POWER ------------ Ion Engine > --- PROPULSION ------- Aluminum Leg Aluminum Leg > --- UTILITY ---------- Heat Sink Heat Sink Small Storage Unit > --- WEAPON ----------- Small Laser Small Laser Assault Rifle > --- INVENTORY -------- Light Ion Engine Light Ion Engine Aluminum Leg Aluminum Leg Aluminum Leg Hacking Suite [Rating: 9] Favorites ----------- Power Ion Engine Engine Ion Engine Propulsion Aluminum Leg Leg Aluminum Leg Wheel Wheel Utility Small Storage Unit Device Heat Sink Storage Small Storage Unit Weapon Assault Rifle Energy Gun Small Laser Energy Cannon Beam Cannon Ballistic Gun Assault Rifle Build | -11 -10 -9 ------- Run | Scr Mat Mat Slots Evolved 2 | . . 2 Power . | . . . Propulsion . | . . . Utility 1 | . . 1 Weapon 1 | . . 1 Parts Attached 15 | 6 7 2 Power 1 | 1 . . Engine 1 | 1 . . Core . | . . . Reactor . | . . . Propulsion 5 | 2 3 . Treads . | . . . Leg 3 | . 3 . Wheel 2 | 2 . . Hover . | . . . Flight . | . . . Utility 3 | 1 1 1 Device 2 | . 1 1 Storage 1 | 1 . . Processor . | . . . Hackware . | . . . Protection . | . . . Artifact . | . . . Weapon 6 | 2 3 1 Energy Gun 3 | 1 1 1 Energy Cannon 1 | . 1 . Ballistic Gun 2 | 1 1 . Ballistic Cannon . | . . . Launcher . | . . . Special Weapon . | . . . Impact Weapon . | . . . Slashing Weapon . | . . . Piercing Weapon . | . . . Special Melee Weapon . | . . . Unidentified Prototypes . | . . . Parts Lost 3 | . 2 1 Power . | . . . Propulsion . | . . . Utility . | . . . Weapon 3 | . 2 1 Highest Loss Streak 1 | . 1 1 To Critical Strikes . | . . . Average Slot Usage (%) 96 | . 95 98 Engine 13 | . 14 11 Leg 17 | . 15 22 Wheel 9 | . 12 . Device 12 | . 10 22 Storage 13 | . 14 11 Energy Gun 9 | . 6 20 Energy Cannon 3 | . 4 . Ballistic Gun 15 | . 17 11 Naked Turns . | . . . Heaviest Build 16 | 13 16 16 Greatest Support 20 | 20 20 20 Greatest Overweight (x) 2 | 2 1 . Average Overweight (x) . | . . . Largest Inventory Capacity 8 | 8 8 8 Average Capacity 7 | 6 8 8 Most Carried 8 | 4 8 7 Average Carried 5 | 2 6 6 Final Capacity 8 | 8 8 8 Final Carried 8 | 4 8 6 Class Distribution -------------------- 81% | Mutant 18% | Scavenger-Gunner Dominant Class ---------------- Mutant | -10/Materials Scavenger-Gunner | -9/Materials Resources | -11 -10 -9 ----------- Run | Scr Mat Mat Matter Collected 477 | 201 276 . Remotely . | . . . Salvage Created 514 | . 478 36 Parts 41 | . 37 4 Haulers Intercepted . | . . . Recyclers Shooed . | . . . Parts Field Recycled . | . . . Retrieved Matter . | . . . Parts Self-Destructed . | . . . Prevented . | . . . Kills | -11 -10 -9 ------- Run | Scr Mat Mat Combat Hostiles Destroyed 9 | . 8 1 Guns 7 | . 6 1 Cannons 2 | . 2 . Classes Destroyed 4 | . 4 . Worker 1 | . 1 . Recycler 1 | . 1 . Grunt 4 | . 3 1 Abomination 5 | . 5 . Best Kill Streak 4 | . 4 1 Combat Bots Only 4 | . 4 1 Max Kills in Single Turn 1 | . 1 1 Gunslinging . | . . . Exploded . | . . . Melee . | . . . Uniques/NPCs Destroyed . | . . . Combat | -11 -10 -9 -------- Run | Scr Mat Mat Damage Taken 1182 | . 707 475 Core 233 | . 133 100 Absorbed by Shields . | . . . Core Remaining (%) 73 | 100 46 . Volleys Fired 44 | . 37 7 Largest 3 | . 2 3 Hottest 100 | . 80 100 Shots Fired 94 | . 74 20 Gun 83 | . 63 20 Cannon 11 | . 11 . Launcher . | . . . Special . | . . . Kinetic 59 | . 52 7 Thermal 35 | . 22 13 Explosive . | . . . Electromagnetic . | . . . Robot Hit Streak 22 | . 22 11 Robot Miss Streak 4 | . 4 1 Penetration Max . | . . . Secondary Targets 2 | . 1 1 Max Gunslinging Chain 1 | . 1 1 Shots Hit Robots 69 | . 51 18 Core Hits 25 | . 21 4 Critical Kills . | . . . Critical Parts Destroyed 1 | . 1 . Critical Strikes 1 | . 1 . Destroy 1 | . 1 . Melee Attacks . | . . . Impact . | . . . Slashing . | . . . Piercing . | . . . Sneak Attacks . | . . . Combat Hostiles . | . . . Follow-up Attacks . | . . . Damage Inflicted 936 | . 689 247 Guns 784 | . 544 240 Cannons 145 | . 145 . Explosions . | . . . Melee . | . . . Ramming 7 | . . 7 Kinetic 545 | . 462 83 Thermal 384 | . 227 157 Explosive . | . . . Electromagnetic . | . . . Impact . | . . . Slashing . | . . . Piercing . | . . . Highest Corruption 1 | . 1 . Average Corruption 1 | . 1 . Corruption Purged . | . . . Corruption Blocked . | . . . Overload Shots . | . . . Overflow Damage . | . . . Projectiles . | . . . Explosions . | . . . Melee . | . . . Knockbacks . | . . . Impact . | . . . Kinetic . | . . . Secondary . | . . . Self-Inflicted Damage . | . . . Shots . | . . . Rammed . | . . . Targets Rammed 2 | . . 2 Kicked 2 | . . 2 Crushed . | . . . Highest Temperature 86 | . 86 . Average Temperature 39 | . 39 . Received Heat Transfer 240 | . 186 54 Siege Activations . | . . . Robots Corrupted . | . . . Combat Hostiles . | . . . Parts Fried . | . . . Impact Corruptions . | . . . Robots Melted . | . . . Combat Hostiles . | . . . Parts Melted 1 | . 1 . Heat Transferred 515 | . 405 110 Parts Sabotaged . | . . . Parts Stolen . | . . . Parts Stripped . | . . . Power Chain Reactions . | . . . Missiles Intercepted . | . . . Alert | -11 -10 -9 ------- Run | Scr Mat Mat Peak Influence 159 | . 159 106 Initial 66 | . . 66 Average 68 | . 76 78 Maximum Alert Level . | . . . Low Security (%) 100 | 100 100 100 Level 1 . | . . . Level 2 . | . . . Level 3 . | . . . Level 4 . | . . . Level 5 . | . . . High Security . | . . . Max Security . | . . . Squads Dispatched 7 | . 6 1 Investigation 4 | . 3 1 Extermination . | . . . Reinforcement 2 | . 2 . Assault 1 | . 1 . Garrison . | . . . Intercept . | . . . Searches Triggered . | . . . Construction Impeded . | . . . Haulers Reinforced . | . . . Active Scanning Responses . | . . . Cargo Convoy Interrupts . | . . . Stealth | -11 -10 -9 --------- Run | Scr Mat Mat Distress Signals 4 | . 1 3 Communications Jammed . | . . . Distress Signals . | . . . Times Spotted 16 | . 11 5 Peak Tracking Total 7 | . 4 7 Tactical Retreats 2 | . 2 . Traps | -11 -10 -9 ------- Run | Scr Mat Mat Traps Triggered . | . . . Indirectly . | . . . Trap Hack Attempts . | . . . Triggered . | . . . Disarmed . | . . . Reprogrammed . | . . . Reused . | . . . Traps Extracted . | . . . Installed . | . . . Triggered 1 | . . 1 Machines | -11 -10 -9 ---------- Run | Scr Mat Mat Machines Disabled . | . . . Max in Single Turn . | . . . Machines Sabotaged . | . . . Overloaded Fab Kills . | . . . Hacking | -11 -10 -9 --------- Run | Scr Mat Mat Machines Accessed 2 | . 2 . Terminals 2 | . 2 . Fabricators . | . . . Repair Stations . | . . . Recycling Units . | . . . Scanalyzers . | . . . Garrison Access . | . . . Total Hacks 8 | . 8 . Successful 5 | . 5 . Failed 3 | . 3 . Catastrophic . | . . . Database Lockouts . | . . . Manual 5 | . 5 . Terminals 8 | . 8 . Fabricators . | . . . Repair Stations . | . . . Recycling Units . | . . . Scanalyzers . | . . . Garrison Access . | . . . Terminal Hacks 3 | . 3 . Level Access Points 1 | . 1 . Terminal Index 1 | . 1 . Zone Layout 1 | . 1 . Fabricator Hacks . | . . . Repair Station Hacks . | . . . Recycling Unit Hacks . | . . . Scanalyzer . | . . . Garrison Access Hacks . | . . . Unauthorized Hacks 2 | . 2 . Terminals 2 | . 2 . Botnet 2 | . 2 . Fabricators . | . . . Repair Stations . | . . . Recycling Units . | . . . Scanalyzers . | . . . Garrison Access . | . . . Data Cores Recovered . | . . . Used . | . . . Hacking Detections 2 | . 2 . Full Trace Events 1 | . 1 . Feedback Events . | . . . Feedback Blocked . | . . . Robot Schematics Acquired . | . . . Robots Built . | . . . Authchips . | . . . Time . | . . . Total Robot Build Rating . | . . . Part Schematics Acquired . | . . . Parts Built . | . . . Authchips . | . . . Time . | . . . Total Part Build Rating . | . . . Parts Repaired . | . . . Time . | . . . Parts Recycled . | . . . Recycled Matter . | . . . Retrieved Matter . | . . . Retrieved Components . | . . . Parts Scanalyzed . | . . . Part Schematics Acquired . | . . . Parts Damaged . | . . . Bothacking | -11 -10 -9 ------------ Run | Scr Mat Mat Used RIF Installer . | . . . Robots Hacked . | . . . Non-combat . | . . . Combat . | . . . Robot Hacks Applied . | . . . Relay Couplers Released . | . . . Fabnet Peak Effective % . | . . . Robots Rewired . | . . . Allies Hacked . | . . . Hacks Repelled . | . . . Allies | -11 -10 -9 -------- Run | Scr Mat Mat Total Allies . | . . . Largest Group . | . . . Highest-Rated Group . | . . . Highest-Rated Ally . | . . . Total Orders . | . . . Ally Attacks . | . . . Total Damage . | . . . Kills . | . . . Allies Corrupted . | . . . Allies Melted . | . . . Intel | -11 -10 -9 ------- Run | Scr Mat Mat Robot Analysis Total . | . . . Derelict Logs Recovered . | . . . Drone Launches . | . . . Drone Recoveries . | . . . Exploration | -11 -10 -9 ------------- Run | Scr Mat Mat Turns Passed 521 | 60 362 99 Spaces Moved 297 | 65 194 38 Core 20 | 20 . . Treads . | . . . Legs 150 | . 112 38 Wheels 127 | 45 82 . Hover . | . . . Flight . | . . . Fastest Speed 50 | 50 80 120 Average Speed 99 | 72 104 120 Slowest Speed 190 | 150 190 120 Overloaded Moves . | . . . Propulsion Burnouts . | . . . Robots Hopped . | . . . Cave-ins Triggered . | . . . Exploration Rate (%) 16 | 3 39 6 Regions Visited 2 Branch Regions . Pre-discovered Areas . | . . . Known Exits Taken 1 | . 1 . Unknown Exits Taken 1 | 1 . . Scrap Searched . | . . . Spaces Dug . | . . . Terrain Destroyed . | . . . Melee . | . . . Projectile . | . . . AOE . | . . . Terrain Rammed . | . . . Walls Destroyed . | . . . Machines Disabled . | . . . Actions | -11 -10 -9 --------- Run | Scr Mat Mat Total 416 | 74 279 63 Wait 47 | . 33 14 Move 295 | 64 193 38 Hop . | . . . Pick Up 10 | 4 6 . Fast Attach 9 | 6 3 . Attach 4 | . 2 2 Detach . | . . . Swap 2 | . 2 . Drop 3 | . 3 . Fire 44 | . 37 7 Melee . | . . . Ram . | . . . Kick 2 | . . 2 Crush . | . . . Escape Stasis . | . . . Rewire . | . . . Trap . | . . . Miscellaneous . | . . . Route ------- -11/Scrapyard -10/Materials (discovered 3 exits: *Mat x3) -9/Materials History --------- Turn | Location | Event 4 | -11/Scrapyard | Discovered new exit (range 15) 61 | -11/Scrapyard | Entered Materials 287 | -10/Materials | Identified exit to Materials 319 | -10/Materials | Build established: Mutant 380 | -10/Materials | Core integrity fell below 50% 423 | -10/Materials | Entered another Materials area 423 | -9/Materials | Evolved 2 slots: Utility x1, Weapon x1 430 | -9/Materials | Discovered new exit (range 11) 522 | -9/Materials | Self-destructed Last Messages --------------- 00481_ Destroyed Flight Unit. 00486_ Kicked G-34 Mercenary. 00489_ Frozen by Ice Anomaly. 00489_ Ice Anomaly freezes G-34 Mercenary. 00490_ Frozen by Ice Anomaly. 00490_ Ice Anomaly freezes G-34 Mercenary. 00492_ Lesser Abomination sheds Warp Anomaly. 00495_ Lesser Abomination forced to warp away. 00501_ G-34 Mercenary destroyed. 00501_ Switching to secondary target: Lesser Abomination. 00503_ Lesser Abomination absorbs Aluminum Leg. 00504_ Lesser Abomination absorbs Heat Sink, Ion Engine. 00505_ R-06 Scavenger collects Aluminum Leg. 00511_ Destroyed Lgt. Ion Engine. 00512_ Lesser Abomination spits out Lgt. Assault Rifle. 00512_ Lesser Abomination absorbs Lgt. Assault Rifle. 00512_ Sml. Laser destroyed. 00514_ Destroyed Wheel. 00518_ R-06 Scavenger collects Mining Laser. 00519_ Lesser Abomination absorbs Lgt. Ion Engine. Map ----- +----------------------------------------------------+ | ????????????????????????????????????????????????? | | ????????????????????????????????????????????????? | | ????????????????????????????????????????????????? | | ????????????????????????????????????????????????? | | ????????????????????????????????????????????????? | | ????????????????????????????????????????????????? | | ????????????????????????????????????????????????? | | ????????????????????????????????????????????????? | | ????????????????????????????????????????????????? | | ????????????????????????????????????????????????? | | ????????????????????????????????????????????????? | | ??????????????????? ";??????????????????????????? | | ?????????????????" ; ?????????????????????????? | | ???????????????? ; ;;?????????????????????????? | | ??????????????"" ; r?????????????????????????? | | ??????????????" ; ;;#######??????????????????? | | ??????????????? ; " #??????????????????? | | ???????????????? ; " """ #??????????????????? | | ????????????????## ; """ #??????????????????? | | ????????????????## ; A """ #?##???????????????? | | ????????????????#% ; ##;###?????????????? | | ???????????????# # ;;#;;;;;;; #?????????????? | | ???????????????### [ A % < ##????????????? | | ????????????# # #; ;;;;" %#????????????? | | ??????????#;;;; ; % ; "" ""#????????????? | | ?????????? ;;;; @### " " #????????????? | | ?????????? % A #?## " " #????????????? | | ?????????? %A % #??? " " #????????????? | | ??????????? ;;;;##??? " " #????????????? | | ??????????? % #######;###????? " " #????????????? | | ?????????????????# ## ???????? " " #???????????? | | ?????????????????##?#????????? " " ??????????? | | ?????????????????????????????? " """""##????????? | | ?????????????????????????????? " #????????? | | ???????????????????????????????" #????????? | | ???????????????????????????????# #????????? | | ???????????????????????????????# ####????????? | | ???????????????????????????????# #???????????? | | ???????????????????????????????# #???????????? | | ???????????????????????????????# #???????????? | | ???????????????????????????????# #???????????? | | ???????????????????????????????# #???????????? | | ???????????????????????????????# #???????????? | | ??????????????????????????????? #???????????? | | ?????????????????????????????? #???????????? | | ?????????????????????????????? #???????????? | | ????????????????????????????? #???????????? | | ???????????????????????????? #???????????? | | ???????????????????????????? #???????????? | | ???????????????????????????? " ????????????? | +----------------------------------------------------+ Best States ------------- Heat Dissipation 48 Energy Generation 10 Energy Capacity 250 Matter Stores 300 Matter Capacity 300 Sight Range 16 Terrain Scan Density 10 Evasion (%) 55 Item Schematics ----------------- None Robot Schematics ------------------ None Fabricated ------------ Nothing Alien Tech Used ----------------- None Achievements -------------- None Challenges ------------ None Game ------ Seed CoilWeaponRedistributor Manual? 0 Play Time 00:06:47 Cumulative 1636.1 hours Start 2022.12.15 @ 14:52:26 End 2022.12.15 @ 14:58:00 Sessions 1 Manual Loads 0 Difficulty Rogue Special Mode Halloween2019/Abominations Game No. 574 Rogue 574 Adventurer 0 Explorer 0 Win Type - Total 121 Types 26/13/51/6/1/2/20/1/1 Lore% 97 Gallery% 97 Achievement% 86 Wizard Run 0 Options --------- ASCII 0 Keyboard 0 Movement Numpad Keybinds 0 Fullscreen 1 Font 18/SmallcapsGlow Map View 76x50 Tactical HUD 1 Map Filters NONE Filters NONE Steam 1 RUN: e156dd8b-4d31-4bd1-affd-0d6028112132